fUST/lending_fUST_20250106
["ID","MTS","AMOUNT","RATE_DAILY","PERIOD"]
[347849693,1736157041979,-500.0,0.0002,3]
[347849694,1736157041988,-500.0,0.0002,3]
[347849695,1736157041997,-500.0,0.0002,3]
[347849696,1736157042007,-500.0,0.0002,3]
[347849697,1736157042016,-500.0,0.0002,3]
[347849698,1736157042026,-763.6,0.0002,3]
[347849699,1736157042035,-500.0,0.0002,3]
[347849700,1736157042045,-1894.79,0.0002,3]
[347849701,1736157042055,-500.0,0.0002,3]
[347849702,1736157042065,-6698.40185193,0.00020038,2]
[347849703,1736157042074,-1000.0,0.00020045,2]
[347849704,1736157042083,-151.0,0.000201,3]
[347849705,1736157042093,-167.73,0.00020175,2]
[347849707,1736157042102,-186.0,0.00020175,2]
[347849709,1736157042112,-186.0,0.00020175,2]
[347849711,1736157042121,-186.0,0.00020175,2]
[347849713,1736157042131,-186.91,0.00020175,2]
[347849715,1736157042140,-165.0,0.00020175,2]
[347849717,1736157042149,-6242.17359911,0.00020176,2]
[347849722,1736157042196,-456.22825282,0.00020176,2]
[347849725,1736157042206,-3460.71642563,0.00020193,2]
[347849727,1736157042216,-5713.05220655,0.0002021,4]
[347849729,1736157042227,-1721.6296,0.0002021,4]
[347849731,1736157042238,-10355.0,0.0002021,4]
[347849834,1736157043154,-909.01536712,0.0002021,4]
[347849841,1736157043213,-429.93257637,0.0002021,4]
[347849843,1736157043226,-61034.89249113,0.0002021,4]
[347850023,1736157046432,-244.95201338,0.00020008,2]
[347850024,1736157046442,-2686.49798662,0.0002021,4]
[347850045,1736157882116,184.136239,0.00013973,2]
[347850048,1736158083310,200.0,0.00025,120]
[347850049,1736158164300,-150.0,0.00017266,2]
[347850050,1736158164322,-175.63389614,0.0001734,2]
[347850051,1736158164343,-175.63389613,0.00017422,2]
[347850052,1736158164373,-150.0,0.0001744,2]
[347850053,1736158164394,-175.63389613,0.00017504,2]
[347850054,1736158164415,-175.63389613,0.00017585,2]
[347850055,1736158164436,-175.63389613,0.00017667,2]
[347850056,1736158164458,-300.0,0.00017767,2]
[347850057,1736158164479,-9385.6483676,0.00017768,2]
[347850058,1736158164500,-1223.55905118,0.00017874,2]
[347850114,1736158232556,-8.78772322,0.00017874,2]
[347850116,1736158232565,-2182.01470467,0.00019078,2]
[347850118,1736158232574,-150.839,0.00019177,2]
[347850120,1736158232584,-300.0,0.00019177,2]
[347850122,1736158232593,-501.74987787,0.00019178,2]
[347850124,1736158232603,-942.81,0.00019178,2]
[347850126,1736158232612,-455.69889578,0.00019178,2]
[347850128,1736158232625,-500.0,0.00019178,2]
[347850130,1736158232634,-500.0,0.00019178,2]
[347850132,1736158232643,-500.0,0.00019178,2]
[347850134,1736158232653,-500.0,0.00019178,2]
[347850136,1736158232661,-500.22473609,0.00019178,2]
[347850138,1736158232671,-500.0,0.00019178,2]
[347850140,1736158232681,-701.64,0.00019178,2]
[347850142,1736158232690,-500.0,0.00019178,2]
[347850144,1736158232700,-228.0023599,0.00019178,2]
[347850146,1736158232709,-500.0,0.00019178,2]
[347850149,1736158232718,-500.0,0.00019178,2]
[347850151,1736158232727,-645.2,0.00019178,2]
[347850154,1736158232737,-500.0,0.00019178,2]
[347850157,1736158232747,-500.0,0.00019178,2]
[347850160,1736158232756,-500.0,0.00019178,2]
[347850162,1736158232766,-500.0,0.00019178,2]
[347850164,1736158232775,-500.0,0.00019178,2]
[347850166,1736158232784,-278.85877836,0.00019178,2]
[347850168,1736158232793,-500.0,0.00019178,2]
[347850170,1736158232803,-500.0,0.00019178,2]
[347850172,1736158232813,-500.0,0.00019178,2]
[347850174,1736158232825,-500.0,0.00019178,2]
[347850176,1736158232834,-500.0,0.00019178,2]
[347850178,1736158232843,-238.21700252,0.00019178,2]
[347850180,1736158232852,-500.0,0.00019178,2]
[347850182,1736158232862,-500.0,0.00019178,2]
[347850184,1736158232874,-500.0,0.00019178,2]
[347850185,1736158232883,-500.0,0.00019178,2]
[347850187,1736158232892,-500.0,0.00019178,2]
[347850189,1736158232902,-500.0,0.00019178,2]
[347850192,1736158232912,-500.0,0.00019178,2]
[347850193,1736158232921,-500.0,0.00019178,2]
[347850195,1736158232931,-500.0,0.00019178,2]
[347850197,1736158232940,-500.0,0.00019178,2]
[347850199,1736158232950,-2874.33,0.00019178,2]
[347850201,1736158232960,-500.0,0.00019178,2]
[347850204,1736158232969,-500.0,0.00019178,2]
[347850206,1736158232979,-500.0,0.00019178,2]
[347850207,1736158232988,-500.0,0.00019178,2]
[347850209,1736158232997,-500.0,0.00019178,2]
[347850212,1736158233006,-500.0,0.00019178,2]
[347850214,1736158233016,-1631.52,0.00019178,2]
[347850216,1736158233025,-500.0,0.00019178,2]
[347850218,1736158233034,-500.0,0.00019178,2]
[347850220,1736158233044,-547.1,0.00019178,2]
[347850222,1736158233054,-500.0,0.00019178,2]
[347850224,1736158233064,-500.0,0.00019178,2]
[347850226,1736158233074,-500.0,0.00019178,2]
[347850228,1736158233084,-2182.03,0.00019178,2]
[347850230,1736158233094,-500.0,0.00019178,2]
[347850232,1736158233104,-500.0,0.00019178,2]
[347850234,1736158233113,-500.0,0.00019178,2]
[347850235,1736158233122,-500.0,0.00019178,2]
[347850238,1736158233135,-500.0,0.00019178,2]
[347850240,1736158233145,-480.13,0.00019178,2]
[347850242,1736158233155,-194.26,0.00019178,2]
[347850244,1736158233165,-500.0,0.00019178,2]
[347850246,1736158233174,-500.0,0.00019178,2]
[347850248,1736158233184,-500.0,0.00019178,2]
[347850250,1736158233195,-500.0,0.00019178,2]
[347850252,1736158233205,-500.0,0.00019178,2]
[347850254,1736158233215,-500.0,0.00019178,2]
[347850256,1736158233225,-500.0,0.00019178,2]
[347850258,1736158233235,-614.67,0.00019178,2]
[347850260,1736158233245,-181.81290131,0.00019178,2]
[347850262,1736158233255,-580.5538592,0.00019178,2]
[347850264,1736158233264,-500.0,0.00019178,2]
[347850266,1736158233273,-500.0,0.00019178,5]
[347850268,1736158233283,-641.33,0.00019178,2]
[347850270,1736158233293,-501.67066568,0.00019178,2]
[347850272,1736158233303,-8014.47,0.00019178,2]
[347850274,1736158233312,-500.0,0.00019178,2]
[347850276,1736158233322,-500.0,0.00019178,2]
[347850277,1736158233331,-500.0,0.00019178,2]
[347850278,1736158233340,-500.0,0.00019178,2]
[347850279,1736158233350,-500.0,0.00019178,2]
[347850280,1736158233359,-500.0,0.00019178,7]
[347850281,1736158233378,-500.0,0.00019178,2]
[347850282,1736158233388,-500.0,0.00019178,2]
[347850283,1736158233397,-500.0,0.00019178,2]
[347850284,1736158233407,-525.72,0.00019178,2]
[347850285,1736158233419,-500.0,0.00019178,2]
[347850286,1736158233428,-500.0,0.00019178,2]
[347850287,1736158233438,-500.0,0.00019178,2]
[347850288,1736158233448,-197.77284311,0.00019178,2]
[347850289,1736158233458,-500.0,0.00019178,2]
[347850290,1736158233468,-500.0,0.00019178,2]
[347850291,1736158233479,-636.34,0.00019178,2]
[347850292,1736158233490,-500.0,0.00019178,2]
[347850293,1736158233500,-500.0,0.00019178,2]
[347850294,1736158233511,-500.0,0.00019178,2]
[347850295,1736158233520,-500.0,0.00019178,2]
[347850296,1736158233530,-500.0,0.00019178,2]
[347850297,1736158233540,-500.0,0.00019178,2]
[347850298,1736158233550,-500.0,0.00019178,2]
[347850300,1736158233559,-500.0,0.00019178,2]
[347850302,1736158233569,-500.0,0.00019178,2]
[347850304,1736158233578,-840.95,0.00019178,2]
[347850306,1736158233588,-500.0,0.00019178,2]
[347850308,1736158233598,-500.0,0.00019178,2]
[347850310,1736158233607,-1465.22,0.00019178,2]
[347850312,1736158233616,-179.075515,0.00019178,2]
[347850314,1736158233630,-466.247,0.000192,2]
[347850316,1736158233643,-150.158067,0.000193,2]
[347850318,1736158233652,-840.95,0.00019451,3]
[347850319,1736158233662,-942.81,0.00019452,3]
[347850321,1736158233671,-701.64,0.00019452,3]
[347850323,1736158233680,-500.0,0.00019452,3]
[347850325,1736158233690,-500.0,0.00019452,3]
[347850327,1736158233699,-500.0,0.00019452,3]
[347850329,1736158233709,-500.0,0.00019452,3]
[347850331,1736158233719,-500.0,0.00019452,3]
[347850333,1736158233728,-241.2113514,0.00019452,3]
[347850335,1736158233738,-500.0,0.00019452,3]
[347850337,1736158233748,-2874.33,0.00019452,3]
[347850339,1736158233758,-500.0,0.00019452,3]
[347850341,1736158233767,-500.0,0.00019452,3]
[347850343,1736158233776,-500.0,0.00019452,2]
[347850345,1736158233786,-500.0,0.00019452,3]
[347850347,1736158233795,-1631.52,0.00019452,3]
[347850349,1736158233804,-500.0,0.00019452,3]
[347850351,1736158233813,-547.1,0.00019452,3]
[347850353,1736158233822,-413.06550822,0.00019452,3]
[347850355,1736158233831,-2182.03,0.00019452,3]
[347850357,1736158233841,-500.0,0.00019452,3]
[347850359,1736158233849,-500.0,0.00019452,3]
[347850361,1736158233859,-500.0,0.00019452,3]
[347850363,1736158233870,-500.0,0.00019452,3]
[347850365,1736158233884,-614.67,0.00019452,3]
[347850367,1736158233894,-500.0,0.00019452,3]
[347850369,1736158233903,-641.33,0.00019452,3]
[347850371,1736158233913,-8014.47,0.00019452,3]
[347850373,1736158233923,-500.0,0.00019452,3]
[347850375,1736158233932,-500.0,0.00019452,3]
[347850377,1736158233942,-525.72,0.00019452,3]
[347850378,1736158233951,-494.13695306,0.00019452,3]
[347850380,1736158233961,-500.0,0.00019452,3]
[347850383,1736158233971,-636.34,0.00019452,3]
[347850385,1736158233981,-500.0,0.00019452,3]
[347850387,1736158233990,-500.0,0.00019452,3]
[347850389,1736158234000,-500.0,0.00019452,3]
[347850390,1736158234008,-500.0,0.00019452,3]
[347850393,1736158234018,-1465.22,0.00019452,3]
[347850394,1736158234027,-2182.01470465,0.00019636,2]
[347850396,1736158234036,-500.0,0.000197,2]
[347850399,1736158234045,-840.95,0.00019725,3]
[347850401,1736158234055,-942.81,0.00019726,3]
[347850403,1736158234065,-701.64,0.00019726,3]
[347850405,1736158234075,-500.0,0.00019726,3]
[347850407,1736158234084,-500.0,0.00019726,3]
[347850409,1736158234095,-500.0,0.00019726,3]
[347850411,1736158234104,-500.0,0.00019726,3]
[347850413,1736158234114,-500.0,0.00019726,3]
[347850415,1736158234127,-170.04,0.00019726,3]
[347850416,1736158234137,-2874.33,0.00019726,3]
[347850419,1736158234147,-251.69,0.00019726,3]
[347850420,1736158234157,-500.0,0.00019726,2]
[347850423,1736158234167,-500.0,0.00019726,3]
[347850425,1736158234176,-1631.52,0.00019726,3]
[347850427,1736158234186,-500.0,0.00019726,3]
[347850429,1736158234196,-547.1,0.00019726,3]
[347850431,1736158234206,-2182.03,0.00019726,3]
[347850432,1736158234215,-500.0,0.00019726,3]
[347850435,1736158234226,-500.0,0.00019726,3]
[347850437,1736158234236,-500.0,0.00019726,3]
[347850439,1736158234246,-500.0,0.00019726,3]
[347850441,1736158234255,-614.67,0.00019726,3]
[347850443,1736158234264,-500.0,0.00019726,3]
[347850445,1736158234274,-641.33,0.00019726,3]
[347850447,1736158234283,-8014.47,0.00019726,3]
[347850449,1736158234293,-400.10805225,0.00019726,3]
[347850451,1736158234303,-500.0,0.00019726,3]
[347850453,1736158234313,-525.72,0.00019726,3]
[347850455,1736158234324,-636.34,0.00019726,3]
[347850457,1736158234334,-500.0,0.00019726,3]
[347850459,1736158234344,-500.0,0.00019726,3]
[347850461,1736158234353,-500.0,0.00019726,3]
[347850463,1736158234363,-500.0,0.00019726,3]
[347850465,1736158234373,-840.95,0.00019911,3]
[347850467,1736158234386,-194.0,0.00019919,2]
[347850468,1736158234395,-221.44,0.00019919,2]
[347850471,1736158234405,-5011.27919718,0.00019987,2]
[347850473,1736158234416,-840.95,0.00019999,3]
[347850475,1736158234425,-10000.0,0.0002,2]
[347850486,1736158234548,-942.81,0.0002,3]
[347850488,1736158234558,-5257.0,0.0002,2]
[347850490,1736158234568,-701.64,0.0002,3]
[347850492,1736158234578,-500.0,0.0002,3]
[347850494,1736158234588,-500.0,0.0002,3]
[347850496,1736158234597,-500.0,0.0002,3]
[347850499,1736158234607,-500.0,0.0002,3]
[347850501,1736158234616,-500.0,0.0002,3]
[347850503,1736158234627,-2874.33,0.0002,3]
[347850505,1736158234636,-500.0,0.0002,3]
[347850507,1736158234645,-1631.52,0.0002,3]
[347850509,1736158234655,-500.0,0.0002,3]
[347850511,1736158234664,-547.1,0.0002,3]
[347850513,1736158234673,-2182.03,0.0002,3]
[347850515,1736158234683,-396.46163296,0.0002,3]
[347850517,1736158234692,-583.0,0.0002,3]
[347850519,1736158234701,-500.0,0.0002,3]
[347850521,1736158234712,-614.67,0.0002,3]
[347850523,1736158234721,-500.0,0.0002,3]
[347850525,1736158234730,-500.0,0.0002,7]
[347850527,1736158234739,-641.33,0.0002,3]
[347850529,1736158234749,-8014.47,0.0002,3]
[347850531,1736158234758,-500.0,0.0002,3]
[347850533,1736158234767,-525.72,0.0002,3]
[347850535,1736158234775,-636.34,0.0002,3]
[347850537,1736158234784,-500.0,0.0002,3]
[347850539,1736158234793,-500.0,0.0002,3]
[347850541,1736158234803,-500.0,0.0002,3]
[347850543,1736158234812,-500.0,0.0002,3]
[347850545,1736158234821,-150.0,0.00020014,2]
[347850547,1736158234830,-251.854,0.00020014,2]
[347850549,1736158234839,-150.0,0.00020014,2]
[347850551,1736158234848,-2081.0,0.00020014,2]
[347850553,1736158234857,-535.0,0.00020014,2]
[347850555,1736158234867,-2318.0,0.00020014,2]
[347850556,1736158234881,-2182.01470465,0.00020195,2]
[347850557,1736158234890,-840.95,0.00020208,3]
[347850558,1736158234900,-840.95,0.00020209,3]
[347850559,1736158234910,-840.95,0.00020209,3]
[347850560,1736158234919,-840.95,0.00020209,3]
[347850561,1736158234929,-840.95,0.00020209,3]
[347850562,1736158234939,-91.08915576,0.00020209,3]
[347850563,1736158234954,-749.86084424,0.00020209,3]
[347850564,1736158234963,-840.95,0.00020209,3]
[347850565,1736158234972,-3200.94858844,0.0002021,2]
[347850566,1736158234982,-4671.13204091,0.0002021,2]
[347850567,1736158234993,-2373.01508578,0.0002021,2]
[347850568,1736158235002,-91187.50329157,0.0002021,4]
[347850569,1736158235014,-693.995,0.0002021,4]
[347850615,1736158238237,-500.0,0.00019178,2]
[347850617,1736158238247,-500.0,0.00019178,2]
[347850619,1736158238257,-500.69702184,0.00019178,2]
[347850621,1736158238267,-500.0,0.00019452,3]
[347850623,1736158238276,-1246.92637816,0.00019726,3]
[347850625,1736158238288,-218.29362184,0.00019726,3]
[347850627,1736158238298,-500.0,0.00019726,3]
[347850629,1736158238307,-144.68090572,0.0002,3]
[347850631,1736158238319,-1320.53909428,0.0002,3]
[347850633,1736158238329,-500.0,0.0002,3]
[347850635,1736158238340,-840.95,0.00020209,3]
[347850637,1736158238350,-840.95,0.00020209,3]
[347850639,1736158238360,-840.95,0.00020209,3]
[347850641,1736158238369,-840.95,0.00020209,3]
[347850643,1736158238381,-840.95,0.00020209,3]
[347850645,1736158238391,-840.95,0.00020209,3]
[347850647,1736158238401,-23917.56209366,0.0002021,4]
[347850650,1736158238414,-500.0,0.0002021,4]
[347850653,1736158238436,-370206.24374525,0.0002021,4]
[347850655,1736158238449,-102533.88733929,0.0002021,4]
[347850672,1736158238617,-1317.59817614,0.0002021,4]
[347850857,1736158240562,-500.0,0.00019178,2]
[347850859,1736158240572,-692.2580604,0.00020209,3]
[347850862,1736158240584,-148.6919396,0.00020209,3]
[347850864,1736158240594,-840.95,0.00020209,3]
[347850866,1736158240604,-53.57535855,0.00020209,3]
[347851170,1736158243417,-1119.78,0.00019178,2]
[347851172,1736158243427,-500.0,0.00019178,2]
[347851174,1736158243436,-1119.78,0.00019452,3]
[347851176,1736158243446,-1119.78,0.00019726,3]
[347851178,1736158243456,-396.492,0.0001977,2]
[347851180,1736158243465,-1119.78,0.0002,3]
[347851182,1736158243476,-787.37464145,0.00020209,3]
[347851184,1736158243485,-840.95,0.00020209,3]
[347851186,1736158243495,-840.95,0.00020209,3]
[347851188,1736158243504,-841.18779486,0.00020209,3]
[347851190,1736158243513,-5088.01914525,0.0002021,4]
[347851192,1736158243525,-8489.44023444,0.0002021,4]
[347851475,1736158246321,-296.982,0.00018986,2]
[347851486,1736158246410,-495.0,0.00018986,2]
[347851488,1736158246422,-327.798,0.00018986,2]
[347851490,1736158246432,-500.0,0.00019178,2]
[347851492,1736158246441,-500.0,0.00019178,2]
[347851494,1736158246451,-363.61208555,0.000202,2]
[347851730,1736158788985,183.121536,0.00013973,2]
[347851745,1736159355115,-754.71486678,0.00015586,2]
[347851746,1736159355137,-300.0,0.00015686,2]
[347851747,1736159355159,-300.0,0.00015844,2]
[347851748,1736159355180,-300.0,0.00016504,2]
[347851749,1736159355202,-2266.18673322,0.00016505,2]
[347851750,1736159371147,-1060.04273692,0.00016177,2]
[347851751,1736159371169,-1060.04273692,0.0001634,2]
[347851752,1736159371191,-22633.81326678,0.00016505,2]
[347851753,1736159371212,-43853.16147056,0.00017,2]
[347851754,1736159371234,-1063.8048742,0.00017574,2]
[347851802,1736159432689,-520.94245863,0.00017398,2]
[347851803,1736159432699,-284.35043619,0.00017674,2]
[347851804,1736159432708,-472.99338025,0.00017774,2]
[347851805,1736159432717,-169.27348,0.0001815,2]
[347851806,1736159432726,-300.0,0.0001825,2]
[347851807,1736159432736,-4701.3704777,0.00018252,2]
[347851808,1736159432745,-169.27347996,0.00018382,2]
[347851809,1736159432754,-169.27347996,0.00018614,2]
[347851810,1736159432763,-169.27347996,0.00018846,2]
[347851811,1736159432772,-219.49130256,0.000189,2]
[347851812,1736159432782,-174.442,0.00018945,2]
[347851813,1736159432792,-499.0,0.00018998,2]
[347851814,1736159432802,-8498.21237318,0.00019,2]
[347851815,1736159432811,-169.27347996,0.00019078,2]
[347851816,1736159432820,-155.43,0.00019173,2]
[347851817,1736159432830,-500.69303137,0.00019173,2]
[347851818,1736159432839,-500.98205997,0.00019173,2]
[347851819,1736159432851,-501.17272382,0.00019173,2]
[347851825,1736159432979,-411.60101554,0.00019173,2]
[347851826,1736159432989,-500.0,0.00019173,2]
[347851827,1736159432998,-266.06303783,0.00019173,2]
[347851828,1736159433007,-160.04130912,0.00019173,2]
[347851829,1736159433017,-151.03898536,0.00019173,2]
[347851830,1736159433026,-151.03898536,0.00019173,2]
[347851831,1736159433036,-268.05627305,0.00019173,2]
[347851832,1736159433046,-151.03898536,0.00019173,2]
[347851833,1736159433056,-266.56880532,0.00019173,2]
[347851834,1736159433066,-173.05245649,0.00019173,2]
[347851835,1736159433075,-500.0,0.00019173,2]
[347851836,1736159433085,-266.56880532,0.00019173,2]
[347851837,1736159433094,-151.03898536,0.00019173,2]
[347851838,1736159433104,-218.15327609,0.00019173,2]
[347851839,1736159433113,-575.32400458,0.00019173,2]
[347851840,1736159433123,-194.18782274,0.00019173,2]
[347851841,1736159433132,-288.24883383,0.00019173,2]
[347851842,1736159433142,-152.03827818,0.00019173,2]
[347851843,1736159433151,-503.11163309,0.00019173,2]
[347851844,1736159433162,-501.04863397,0.00019173,2]
[347851845,1736159433171,-152.03751645,0.00019173,2]
[347851846,1736159433180,-162.08790991,0.00019173,2]
[347851847,1736159433191,-444.87934718,0.00019177,2]
[347851848,1736159433200,-161.41554302,0.00019177,2]
[347851849,1736159433209,-500.0,0.00019177,2]
[347851850,1736159433219,-225.0,0.00019177,2]
[347851851,1736159433228,-500.0,0.00019177,2]
[347851852,1736159433238,-500.0,0.00019177,2]
[347851853,1736159433247,-488.24694559,0.00019177,2]
[347851854,1736159433256,-500.0,0.00019177,2]
[347851855,1736159433265,-500.0,0.00019177,2]
[347851856,1736159433275,-500.0,0.00019177,2]
[347851857,1736159433288,-500.0,0.00019177,2]
[347851858,1736159433297,-500.0,0.00019177,2]
[347851859,1736159433307,-500.0,0.00019177,2]
[347851860,1736159433317,-500.0,0.00019177,2]
[347851861,1736159433327,-500.0,0.00019177,2]
[347851862,1736159433336,-500.0,0.00019177,2]
[347851863,1736159433347,-500.0,0.00019177,2]
[347851864,1736159433357,-500.0,0.00019177,2]
[347851865,1736159433367,-500.0,0.00019177,2]
[347851866,1736159433376,-500.0,0.00019177,2]
[347851867,1736159433386,-251.94156128,0.00019177,2]
[347851868,1736159433395,-500.0,0.00019177,2]
[347851869,1736159433405,-500.0,0.00019177,2]
[347851870,1736159433415,-500.0,0.00019177,2]
[347851871,1736159433425,-500.0,0.00019177,2]
[347851872,1736159433435,-500.0,0.00019177,2]
[347851873,1736159433445,-500.0,0.00019177,2]
[347851874,1736159433454,-500.0,0.00019177,2]
[347851875,1736159433463,-500.0,0.00019177,2]
[347851876,1736159433473,-500.0,0.00019177,2]
[347851877,1736159433483,-500.0,0.00019177,2]
[347851878,1736159433492,-500.0,0.00019177,2]
[347851879,1736159433502,-500.0,0.00019177,2]
[347851880,1736159433511,-270.0,0.00019177,2]
[347851881,1736159433521,-500.0,0.00019177,2]
[347851882,1736159433531,-500.0,0.00019177,2]
[347851883,1736159433540,-388.837823,0.00019177,2]
[347851884,1736159433550,-500.0,0.00019177,2]
[347851885,1736159433559,-611.6787133,0.00019177,2]
[347851886,1736159433569,-500.0,0.00019177,2]
[347851887,1736159433579,-500.0,0.00019177,2]
[347851888,1736159433588,-500.0,0.00019177,2]
[347851889,1736159433598,-500.0,0.00019177,2]
[347851890,1736159433608,-500.0,0.00019177,2]
[347851891,1736159433618,-500.0,0.00019177,2]
[347851892,1736159433628,-500.0,0.00019177,2]
[347851893,1736159433638,-500.0,0.00019177,2]
[347851894,1736159433647,-500.0,0.00019177,2]
[347851895,1736159433658,-500.0,0.00019177,2]
[347851896,1736159433668,-500.0,0.00019177,2]
[347851897,1736159433678,-500.0,0.00019177,2]
[347851898,1736159433687,-500.0,0.00019177,2]
[347851899,1736159433697,-500.0,0.00019177,2]
[347851900,1736159433706,-500.0,0.00019177,2]
[347851901,1736159433716,-193.23882899,0.00019177,2]
[347851902,1736159433725,-500.0,0.00019177,2]
[347851903,1736159433734,-252.9480015,0.00019178,2]
[347851904,1736159433744,-500.60432043,0.00019178,2]
[347851905,1736159433753,-501.18358387,0.00019178,2]
[347851906,1736159433762,-612.59832063,0.00019178,2]
[347851907,1736159433771,-637.58638387,0.00019178,2]
[347851908,1736159433781,-500.0,0.00019178,2]
[347851909,1736159433790,-500.0,0.00019178,2]
[347851910,1736159433800,-500.0,0.00019178,2]
[347851911,1736159433810,-500.0,0.00019178,2]
[347851912,1736159433819,-535.03851394,0.00019178,2]
[347851913,1736159433829,-503.44772345,0.00019178,2]
[347851914,1736159433839,-500.0,0.00019178,2]
[347851915,1736159433848,-501.76272462,0.00019178,2]
[347851916,1736159433859,-500.0,0.00019178,2]
[347851917,1736159433869,-500.0,0.00019178,2]
[347851918,1736159433879,-500.0,0.00019178,2]
[347851919,1736159433889,-511.14595634,0.00019178,2]
[347851920,1736159433899,-587.82425264,0.00019178,2]
[347851921,1736159433908,-500.0,0.00019178,2]
[347851922,1736159433917,-504.80280876,0.00019178,2]
[347851923,1736159433927,-500.0,0.00019178,2]
[347851924,1736159433937,-500.0,0.00019178,2]
[347851925,1736159433947,-500.76012162,0.00019178,2]
[347851926,1736159433956,-396.93570962,0.00019178,2]
[347851927,1736159433966,-501.034134,0.00019178,2]
[347851928,1736159433975,-502.50476942,0.00019178,2]
[347851929,1736159433985,-500.0,0.00019178,2]
[347851930,1736159433994,-500.0,0.00019178,2]
[347851931,1736159434003,-500.0,0.00019178,2]
[347851932,1736159434014,-500.0,0.00019178,2]
[347851933,1736159434023,-500.0,0.00019178,2]
[347851934,1736159434032,-500.0,0.00019178,2]
[347851935,1736159434042,-500.0,0.00019178,2]
[347851936,1736159434051,-500.0,0.00019178,2]
[347851937,1736159434060,-500.0,0.00019178,2]
[347851938,1736159434070,-500.0,0.00019178,2]
[347851939,1736159434079,-500.0,0.00019178,2]
[347851940,1736159434088,-500.0,0.00019178,2]
[347851941,1736159434099,-500.0,0.00019178,2]
[347851942,1736159434108,-500.0,0.00019178,2]
[347851943,1736159434118,-500.0,0.00019178,2]
[347851944,1736159434127,-431.35853175,0.00019178,2]
[347851945,1736159434136,-500.55265371,0.00019178,2]
[347851946,1736159434145,-625.97742831,0.00019178,2]
[347851947,1736159434154,-500.0,0.00019178,2]
[347851948,1736159434164,-500.0,0.00019178,2]
[347851949,1736159434173,-207.52198865,0.00019178,2]
[347851950,1736159434183,-500.0,0.00019178,2]
[347851951,1736159434192,-500.0,0.00019178,2]
[347851952,1736159434202,-501.2924336,0.00019178,2]
[347851953,1736159434211,-500.0,0.00019178,2]
[347851954,1736159434220,-503.87837322,0.00019178,2]
[347851955,1736159434230,-500.0,0.00019178,2]
[347851956,1736159434239,-500.0,0.00019178,2]
[347851957,1736159434249,-500.0,0.00019178,2]
[347851958,1736159434258,-500.0,0.00019178,2]
[347851959,1736159434267,-500.0,0.00019178,2]
[347851960,1736159434277,-500.0,0.00019178,2]
[347851961,1736159434290,-500.0,0.00019178,2]
[347851962,1736159434299,-331.87317371,0.00019178,2]
[347851963,1736159434309,-500.0,0.00019178,2]
[347851964,1736159434318,-500.0,0.00019178,2]
[347851965,1736159434329,-500.0,0.00019178,2]
[347851966,1736159434338,-500.0,0.00019178,2]
[347851967,1736159434349,-500.0,0.00019178,2]
[347851968,1736159434361,-500.0,0.00019178,2]
[347851969,1736159434371,-500.0,0.00019178,2]
[347851970,1736159434380,-500.0,0.00019178,2]